lending/lending_fUSD_20251111
["ID","MTS","AMOUNT","RATE_DAILY","PERIOD"]
[393659140,1762889447981,-150.0,0.0003913,2]
[393659142,1762889447990,-150.0,0.0003913,2]
[393659144,1762889448000,-177.09,0.0003913,2]
[393659146,1762889448010,-169.21,0.0003913,2]
[393659148,1762889448020,-177.09,0.0003913,2]
[393659151,1762889448030,-150.0,0.0003913,2]
[393659152,1762889448039,-150.0,0.0003913,2]
[393659154,1762889448049,-169.21,0.0003913,2]
[393659157,1762889448059,-177.09,0.0003913,2]
[393659158,1762889448069,-169.21,0.0003913,2]
[393659160,1762889448078,-177.09,0.0003913,2]
[393659162,1762889448092,-500.0,0.00039171,2]
[393659164,1762889448102,-500.0,0.00039171,20]
[393659166,1762889448111,-500.0,0.00039178,30]
[393659168,1762889448120,-6383.33547904,0.0003918,120]
[393659170,1762889448131,-1000.0,0.00039188,7]
[393659172,1762889448140,-300.29,0.00039192,2]
[393659174,1762889448150,-1256.0,0.00039201,2]
[393659176,1762889448159,-154.539638,0.00039202,2]
[393659178,1762889448170,-153.163044,0.00039202,2]
[393659180,1762889448179,-152.133885,0.00039202,2]
[393659182,1762889448189,-1000.0,0.00039223,7]
[393659184,1762889448199,-1000.0,0.00039238,7]
[393659186,1762889448209,-168.0,0.00039275,7]
[393659188,1762889448219,-1000.0,0.00039305,7]
[393659190,1762889448229,-936.96,0.00039349,2]
[393659192,1762889448238,-500.0,0.00039378,20]
[393659194,1762889448247,-216.34753877,0.00039378,2]
[393659196,1762889448258,-53712.57504803,0.00039379,28]
[393659198,1762889448267,-500.0,0.00039398,20]
[393659200,1762889448277,-500.0,0.00039398,20]
[393659202,1762889448286,-500.0,0.00039398,20]
[393659204,1762889448295,-500.0,0.00039398,20]
[393659206,1762889448304,-500.0,0.00039398,20]
[393659208,1762889448313,-500.0,0.00039398,20]
[393659210,1762889448322,-500.0,0.00039398,20]
[393659212,1762889448331,-500.0,0.00039398,20]
[393659214,1762889448340,-500.0,0.00039398,20]
[393659216,1762889448350,-4361.52,0.000394,14]
[393659218,1762889448359,-556.09,0.000394,14]
[393659220,1762889448369,-1000.0,0.00039434,7]
[393659222,1762889448379,-330.14583196,0.00039447,2]
[393659224,1762889448389,-810.79479847,0.00039476,2]
[393659226,1762889448399,-1000.0,0.00039487,7]
[393659228,1762889448408,-1000.0,0.000395,2]
[393659230,1762889448417,-1000.0,0.00039502,7]
[393659232,1762889448426,-300.0,0.00039504,2]
[393659234,1762889448436,-5310.0,0.00039523,7]
[393659236,1762889448445,-1125.0812,0.0003955,2]
[393659238,1762889448455,-1000.0,0.00039584,7]
[393659240,1762889448464,-1055.02,0.000396,30]
[393659242,1762889448473,-500.0,0.00039616,2]
[393659244,1762889448490,-1000.0,0.00039648,7]
[393659246,1762889448502,-371.44,0.00039654,2]
[393659248,1762889448513,-1000.0,0.00039702,7]
[393659250,1762889448523,-5309.0,0.00039702,7]
[393659252,1762889448532,-300.0,0.00039735,2]
[393659254,1762889448541,-166.908883,0.00039775,3]
[393659256,1762889448550,-160.603281,0.00039775,3]
[393659258,1762889448560,-154.539638,0.00039775,3]
[393659260,1762889448568,-159.9905,0.00039775,3]
[393659261,1762889448578,-155.896421,0.00039775,3]
[393659263,1762889448587,-153.163044,0.00039775,3]
[393659265,1762889448596,-152.133885,0.00039775,3]
[393659267,1762889448606,-166.66,0.0003978,2]
[393659269,1762889448616,-1000.0,0.00039818,7]
[393659271,1762889448625,-152.0,0.00039842,3]
[393659273,1762889448636,-1000.0,0.00039915,7]
[393659276,1762889448647,-150.0,0.00039952,2]
[393659277,1762889448656,-169.21,0.00039952,2]
[393659279,1762889448666,-177.09,0.00039952,2]
[393659281,1762889448676,-150.0,0.00039952,2]
[393659283,1762889448686,-169.21,0.00039952,2]
[393659285,1762889448695,-177.09,0.00039952,2]
[393659288,1762889448705,-169.21,0.00039952,2]
[393659289,1762889448714,-177.09,0.00039952,2]
[393659292,1762889448724,-169.21,0.00039952,2]
[393659293,1762889448733,-150.0,0.00039952,2]
[393659295,1762889448743,-177.09,0.00039952,2]
[393659297,1762889448752,-169.21,0.00039952,2]
[393659300,1762889448762,-150.0,0.00039952,2]
[393659301,1762889448771,-169.21,0.00039952,2]
[393659303,1762889448781,-169.21,0.00039952,2]
[393659305,1762889448791,-337.04,0.00039952,2]
[393659307,1762889448801,-150.0,0.00039952,2]
[393659309,1762889448810,-150.0,0.00039952,2]
[393659311,1762889448819,-150.0,0.00039952,2]
[393659313,1762889448828,-150.0,0.00039952,2]
[393659315,1762889448838,-150.0,0.00039952,2]
[393659317,1762889448848,-150.0,0.00039952,2]
[393659319,1762889448857,-150.0,0.00039952,2]
[393659321,1762889448867,-154.539638,0.00039956,60]
[393659323,1762889448877,-247.7217863,0.00039971,2]
[393659325,1762889448887,-876.3791123,0.00039971,2]
[393659327,1762889448896,-184.4336716,0.00039974,2]
[393659330,1762889448911,-683.47259048,0.0004,120]
[393659332,1762889448925,-200.0,0.0004,120]
[393659335,1762889448940,-254.69,0.0004,60]
[393659337,1762889448953,-2299.99998805,0.0004,2]
[393659339,1762889448967,-1000.0,0.00040002,7]
[393659342,1762889448978,-150.0,0.00040014,2]
[393659344,1762889448990,-150.0,0.00040014,2]
[393659346,1762889449003,-150.0,0.00040014,2]
[393659349,1762889449016,-169.21,0.00040015,2]
[393659351,1762889449028,-169.21,0.00040015,2]
[393659353,1762889449041,-169.21,0.00040015,2]
[393659356,1762889449053,-169.21,0.00040015,2]
[393659358,1762889449066,-169.21,0.00040015,2]
[393659360,1762889449077,-300.0,0.00040036,2]
[393659362,1762889449094,-300.0,0.00040063,2]
[393659365,1762889449106,-300.0,0.00040084,2]
[393659367,1762889449120,-5309.0,0.00040088,2]
[393659369,1762889449133,-150.0,0.000401,27]
[393659372,1762889449145,-235.35,0.000401,27]
[393659374,1762889449155,-500.0,0.00040109,20]
[393659376,1762889449167,-167.38263505,0.0004011,2]
[393659378,1762889449180,-500.0,0.00040111,20]
[393659381,1762889449193,-810.79479847,0.00040112,15]
[393659383,1762889449205,-186.13127658,0.00040112,15]
[393659385,1762889449217,-203.28723306,0.00040112,120]
[393659388,1762889449230,-300.0,0.00040121,2]
[393659390,1762889449242,-300.0,0.00040141,2]
[393659392,1762889449255,-1000.0,0.00040179,7]
[393659394,1762889449267,-300.0,0.00040191,2]
[393659397,1762889449279,-150.0,0.00040195,2]
[393659399,1762889449290,-3106.93072591,0.00040195,2]
[393659401,1762889449302,-1000.00000001,0.00040195,120]
[393659402,1762889449315,-158.75540727,0.00040196,30]
[393659403,1762889449327,-500.0,0.00040196,15]
[393659404,1762889449338,-500.0,0.00040196,15]
[393659405,1762889449351,-500.0,0.00040196,15]
[393659406,1762889449361,-500.0,0.00040196,15]
[393659407,1762889449373,-500.0,0.00040196,15]
[393659408,1762889449384,-500.0,0.00040196,15]
[393659409,1762889449395,-500.0,0.00040196,15]
[393659410,1762889449406,-500.0,0.00040196,15]
[393659411,1762889449418,-500.0,0.00040197,2]
[393659412,1762889449432,-500.0,0.00040197,2]
[393659415,1762889449445,-500.0,0.00040197,2]
[393659417,1762889449457,-500.0,0.00040197,2]
[393659419,1762889449468,-459.02,0.00040198,7]
[393659421,1762889449480,-347.8,0.000402,30]
[393659424,1762889449491,-159.9905,0.000402,2]
[393659426,1762889449501,-154.539638,0.000402,2]
[393659428,1762889449511,-153.163044,0.000402,2]
[393659430,1762889449522,-152.133885,0.000402,2]
[393659432,1762889449532,-250.0,0.000402,14]
[393659434,1762889449544,-250.0,0.000402,14]
[393659437,1762889449558,-250.0,0.000402,14]
[393659439,1762889449570,-250.0,0.000402,14]
[393659441,1762889449580,-250.0,0.000402,14]
[393659443,1762889449590,-250.0,0.000402,14]
[393659445,1762889449599,-250.0,0.000402,14]
[393659447,1762889449609,-250.0,0.000402,14]
[393659449,1762889449619,-250.0,0.000402,14]
[393659451,1762889449630,-250.0,0.000402,14]
[393659453,1762889449641,-250.0,0.000402,14]
[393659456,1762889449652,-250.0,0.000402,14]
[393659458,1762889449664,-250.0,0.000402,14]
[393659460,1762889449674,-250.0,0.000402,14]
[393659462,1762889449684,-250.0,0.000402,14]
[393659464,1762889449694,-250.0,0.000402,14]
[393659466,1762889449704,-250.0,0.000402,14]
[393659468,1762889449715,-250.0,0.000402,14]
[393659470,1762889449725,-250.0,0.000402,14]
[393659472,1762889449736,-250.0,0.000402,14]
[393659474,1762889449746,-250.0,0.000402,14]
[393659476,1762889449756,-250.0,0.000402,14]
[393659479,1762889449767,-270.6,0.000402,14]
[393659481,1762889449778,-500.0,0.00040201,30]
[393659483,1762889449788,-500.0,0.00040209,20]
[393659485,1762889449798,-500.0,0.00040209,20]
[393659487,1762889449810,-500.0,0.00040209,20]
[393659489,1762889449821,-500.0,0.00040209,20]
[393659491,1762889449832,-500.0,0.00040209,20]
[393659493,1762889449842,-500.0,0.00040209,2]
[393659496,1762889449854,-500.0,0.00040209,2]
[393659498,1762889449865,-264.45399243,0.00040209,2]
[393659500,1762889449875,-500.0,0.00040209,20]
[393659502,1762889449886,-500.0,0.00040209,20]
[393659504,1762889449897,-500.0,0.00040209,20]
[393659506,1762889449907,-500.0,0.00040209,20]
[393659508,1762889449918,-500.0,0.00040209,20]
[393659511,1762889449929,-500.0,0.00040209,20]
[393659513,1762889449941,-500.0,0.00040209,20]
[393659515,1762889449954,-500.0,0.00040209,20]
[393659517,1762889449964,-500.0,0.00040209,20]
[393659519,1762889449975,-500.0,0.00040209,20]
[393659521,1762889449986,-298.27862483,0.00040209,20]
[393659522,1762889449997,-15007.05045412,0.0004021,30]
[393659523,1762889450014,-15007.05045412,0.0004021,30]
[393659524,1762889450026,-15007.05045412,0.0004021,30]
[393659525,1762889450039,-15007.05045412,0.0004021,30]
[393659526,1762889450050,-185.32066399,0.0004021,30]
[393659527,1762889450062,-500.0,0.00040211,20]
[393659528,1762889450073,-380.0,0.00040211,20]
[393659529,1762889450093,-3367397.15525774,0.00040212,7]
[393659530,1762889450228,-104.6,0.00040212,7]
[393659531,1762889450241,-2210.079186,0.00040212,7]
[393659532,1762889450370,-21.16781231,0.00040212,7]
[393659533,1762889450382,-1264.82357846,0.00040212,7]
[393659534,1762889450397,-1039.38795691,0.00040212,7]
[393659535,1762889450408,-246097.36306858,0.00040212,7]
[393659536,1762889450666,-2031690.76970424,0.00040212,7]
[393659542,1762890088396,309.54,0.00013699,2]
[393659544,1762890243725,536.31003349,0.00022206,120]
[393659556,1762890632027,-309.54,0.00020187,2]
[393659557,1762890632038,-250.0,0.00022206,2]
[393659559,1762890632048,-309.54,0.00026676,2]
[393659561,1762890632058,-309.54,0.00033165,2]
[393659563,1762890632067,-163.76,0.00034221,30]
[393659564,1762890632078,-1077.08,0.00035754,2]
[393659565,1762890632087,-735.25,0.00035986,30]
[393659566,1762890632097,-163.76,0.00036022,30]
[393659567,1762890632107,-150.0,0.00036083,2]
[393659568,1762890632116,-1149.51,0.00036096,2]
[393659569,1762890632126,-999.0,0.00036187,3]
[393659570,1762890632135,-1000.0,0.00036221,30]
[393659571,1762890632145,-334.06188822,0.00036221,30]
[393659572,1762890632158,-1660.01509859,0.00036221,30]
[393659573,1762890632167,-1600.0,0.00036257,3]
[393659574,1762890632177,-1852.42,0.00036258,2]
[393659575,1762890632187,-491.06,0.00036424,2]
[393659576,1762890632196,-400.0,0.00036453,3]
[393659577,1762890632205,-400.0,0.00036453,2]
[393659578,1762890632215,-2413.73,0.00036454,2]
[393659579,1762890632225,-150.0,0.00036466,2]
[393659580,1762890632234,-582.86,0.00036466,2]
[393659581,1762890632243,-150.0,0.00036481,2]
[393659582,1762890632253,-193.42,0.00036535,120]
[393659583,1762890632263,-1001.0,0.00037,2]
[393659584,1762890632272,-450.2016334,0.00037275,2]
[393659585,1762890632282,-6298.0195,0.00037358,2]
[393659586,1762890632291,-1000.0,0.00037368,2]
[393659587,1762890632301,-2500.0,0.00037368,2]
[393659588,1762890632311,-5765.1367107,0.00037373,2]
[393659589,1762890632321,-159.35999489,0.00037373,15]
[393659591,1762890632330,-174.52267495,0.00037383,2]
[393659592,1762890632339,-661.147,0.00037384,48]
[393659593,1762890632349,-181.498,0.00037384,48]
[393659594,1762890632359,-1000.0,0.00037413,2]
[393659595,1762890632368,-151.0,0.00037445,2]
[393659596,1762890632378,-151.0,0.00037445,2]
[393659597,1762890632387,-151.0,0.00037445,2]
[393659598,1762890632397,-151.0,0.00037445,2]
[393659600,1762890632406,-151.0,0.00037445,2]
[393659601,1762890632416,-151.0,0.00037445,2]
[393659602,1762890632425,-151.0,0.00037445,2]
[393659603,1762890632434,-151.0,0.00037445,2]
[393659604,1762890632443,-67250.4300426,0.00037458,4]
[393659605,1762890632456,-156.14722711,0.00037467,15]
[393659606,1762890632466,-500.0,0.00037467,15]
[393659607,1762890632478,-500.0,0.00037467,15]
[393659608,1762890632487,-228.85878219,0.00037467,15]
[393659609,1762890632499,-500.0,0.00037467,15]
[393659610,1762890632509,-374.73038156,0.00037467,2]
[393659611,1762890632519,-486.44989032,0.00037467,15]
[393659612,1762890632532,-500.0,0.00037467,15]
[393659613,1762890632541,-500.0,0.00037467,15]
[393659614,1762890632551,-500.0,0.00037467,15]
[393659615,1762890632560,-500.0,0.00037467,15]
[393659616,1762890632569,-500.0,0.00037467,15]
[393659617,1762890632578,-500.0,0.00037467,15]
[393659618,1762890632587,-500.0,0.00037467,15]
[393659619,1762890632596,-500.0,0.00037467,7]
[393659620,1762890632605,-172059.56460554,0.00037468,2]
[393659621,1762890632618,-21456.65423829,0.00037468,2]
[393659622,1762890632628,-71142.86164178,0.00037468,2]
[393659623,1762890632639,-38575.42263865,0.00037468,2]
[393659624,1762890632650,-383.47776338,0.00037468,2]
[393659625,1762890632661,-2081.75885692,0.00037468,2]
[393659626,1762890632672,-6930.5,0.00037468,2]
[393659627,1762890632683,-999.51833433,0.00037468,2]
[393659628,1762890632708,-106370.24192111,0.00037468,2]
[393659629,1762890632717,-255.88847876,0.00037473,2]
[393659630,1762890632726,-6113.67545842,0.00037573,4]
[393659631,1762890632736,-5888.0,0.00037583,2]
[393659632,1762890632746,-5765.13671069,0.0003768,2]
[393659633,1762890632755,-163.76,0.00037823,30]
[393659634,1762890632765,-255.88847876,0.00037853,2]
[393659635,1762890632775,-158.337964,0.00037958,3]
[393659636,1762890632784,-6113.67545842,0.00037986,4]
[393659637,1762890632797,-5765.13671069,0.00037987,2]
[393659638,1762890632806,-154.0,0.00038,30]
[393659639,1762890632816,-255.88847876,0.00038234,2]
[393659640,1762890632825,-5765.13671069,0.00038294,2]
[393659641,1762890632834,-150.0,0.00038301,2]
[393659642,1762890632844,-150.0,0.00038301,2]
[393659643,1762890632854,-249.72,0.00038456,2]
[393659644,1762890632863,-1256.0,0.00038518,7]
[393659645,1762890632873,-6113.67545842,0.00038597,4]
[393659646,1762890632883,-5765.13671069,0.00038601,2]
[393659647,1762890632892,-255.88847876,0.00038614,2]
[393659648,1762890632903,-5765.13671069,0.00038908,2]
[393659649,1762890632912,-1280.0,0.00038976,5]
[393659650,1762890632922,-150.0,0.00038994,2]
[393659651,1762890632931,-255.88847876,0.00038995,2]
[393659652,1762890632940,-560.0,0.00039027,5]
[393659653,1762890632950,-12227.3509168,0.00039114,4]
[393659654,1762890632960,-1657.68510588,0.00039114,4]
[393659655,1762890632969,-160.603281,0.00039115,3]
[393659656,1762890632979,-154.539638,0.00039115,3]
[393659657,1762890632989,-158.337964,0.00039115,3]
[393659658,1762890632998,-153.388063,0.00039115,3]
[393659659,1762890633009,-159.9905,0.00039115,3]
[393659660,1762890633019,-153.163045,0.00039115,3]
[393659661,1762890633028,-153.455084,0.00039115,3]
[393659662,1762890633037,-574.0,0.00039124,2]
[393659663,1762890633047,-3426.0,0.00039124,2]
[393659664,1762890633056,-1359.192,0.00039124,2]
[393659665,1762890633065,-608.0,0.00039124,2]
[393659666,1762890633075,-906.0,0.00039124,2]
[393659667,1762890633084,-1189.0,0.00039124,2]
[393659668,1762890633093,-1274.0,0.00039124,2]
[393659669,1762890633103,-813.0,0.00039124,2]
[393659670,1762890633112,-2143.0,0.00039124,2]
[393659671,1762890633121,-6481.0,0.00039124,2]
[393659672,1762890633131,-6664.0,0.00039124,2]
[393659673,1762890633141,-6113.67545842,0.00039181,4]
[393659674,1762890633150,-1657.68510588,0.00039181,4]
[393659675,1762890633160,-12227.3509168,0.00039202,4]
[393659676,1762890633169,-3315.37021176,0.00039202,4]
[393659677,1762890633179,-6113.67545842,0.00039209,4]
[393659678,1762890633188,-1256.0,0.00039209,120]
[393659679,1762890633198,-500.0,0.00039212,7]
[393659680,1762890633207,-500.0,0.00039212,7]
[393659681,1762890633216,-500.0,0.00039212,7]
[393659682,1762890633226,-500.0,0.00039212,7]
[393659683,1762890633235,-500.0,0.00039212,7]
[393659684,1762890633244,-500.0,0.00039212,7]
[393659685,1762890633254,-500.0,0.00039212,7]
[393659686,1762890633264,-500.0,0.00039212,7]
[393659687,1762890633273,-500.0,0.00039212,7]
[393659688,1762890633282,-500.0,0.00039212,7]
[393659689,1762890633292,-500.0,0.00039212,7]
[393659690,1762890633301,-500.0,0.00039212,7]
[393659691,1762890633311,-500.0,0.00039212,7]
[393659692,1762890633321,-500.0,0.00039212,7]
[393659693,1762890633331,-500.0,0.00039212,7]
[393659694,1762890633340,-500.0,0.00039212,7]
[393659695,1762890633349,-500.0,0.00039212,7]
[393659696,1762890633363,-500.0,0.00039212,7]
[393659697,1762890633372,-462.04,0.00039212,7]
[393659698,1762890633382,-500.0,0.00039212,7]
[393659699,1762890633391,-500.0,0.00039212,7]
[393659700,1762890633401,-500.0,0.00039212,7]
[393659701,1762890633411,-500.0,0.00039212,7]
[393659702,1762890633420,-500.0,0.00039212,7]
[393659703,1762890633430,-500.0,0.00039212,7]
[393659704,1762890633439,-500.0,0.00039212,7]
[393659705,1762890633450,-500.0,0.00039212,7]
[393659706,1762890633460,-500.0,0.00039212,7]
[393659707,1762890633470,-500.0,0.00039212,7]
[393659708,1762890633479,-500.0,0.00039212,7]
[393659709,1762890633489,-500.0,0.00039212,7]
[393659710,1762890633499,-500.0,0.00039212,7]
[393659711,1762890633509,-500.0,0.00039212,7]
[393659712,1762890633518,-500.0,0.00039212,7]
[393659713,1762890633529,-500.0,0.00039212,7]
[393659714,1762890633539,-500.0,0.00039212,7]
[393659715,1762890633549,-500.0,0.00039212,7]
[393659716,1762890633563,-500.0,0.00039212,7]
[393659717,1762890633572,-500.0,0.00039212,7]
[393659718,1762890633581,-500.0,0.00039212,7]
[393659719,1762890633591,-500.0,0.00039212,7]
[393659720,1762890633600,-500.0,0.00039212,7]
[393659721,1762890633610,-500.0,0.00039212,7]
[393659722,1762890633620,-500.0,0.00039212,7]
[393659723,1762890633629,-500.0,0.00039212,7]
[393659724,1762890633639,-500.0,0.00039212,7]
[393659725,1762890633648,-500.0,0.00039212,7]
[393659726,1762890633658,-500.0,0.00039212,7]
[393659727,1762890633667,-500.0,0.00039212,7]
[393659728,1762890633677,-500.0,0.00039212,7]
[393659729,1762890633686,-507.36,0.00039212,7]
[393659730,1762890633696,-500.0,0.00039212,7]
[393659731,1762890633706,-500.0,0.00039212,7]
[393659732,1762890633715,-421.53,0.00039212,7]
[393659733,1762890633726,-500.0,0.00039212,7]
[393659734,1762890633735,-5765.13671069,0.00039215,2]
[393659735,1762890633744,-255.88847876,0.00039375,2]
[393659736,1762890633758,-5765.13671069,0.00039522,2]
[393659737,1762890633768,-416.14,0.00039623,2]
[393659738,1762890633777,-416.14,0.00039623,2]
[393659739,1762890633787,-416.14,0.00039623,2]
[393659740,1762890633796,-309.54,0.00039654,2]
[393659741,1762890633806,-255.88847876,0.00039756,2]
[393659742,1762890633815,-1657.68510588,0.0003981,4]
[393659743,1762890633825,-6113.67545842,0.0003982,4]
[393659744,1762890633834,-5765.13671069,0.00039829,2]
[393659745,1762890633843,-6113.67545842,0.0003989,4]
[393659746,1762890633852,-1657.68510588,0.0003989,4]
[393659747,1762890633862,-18750.0,0.000399,120]
[393659748,1762890633871,-1000.0,0.00039903,7]
[393659749,1762890633880,-1657.68510588,0.00039918,4]
[393659750,1762890633890,-6113.67545842,0.00039919,4]
[393659751,1762890633899,-1000.0,0.00039921,7]
[393659752,1762890633909,-1000.0,0.00039924,7]
[393659753,1762890633919,-1000.0,0.00039926,7]
[393659754,1762890633928,-1000.0,0.00039928,7]
[393659755,1762890633937,-1000.0,0.00039929,7]
[393659756,1762890633950,-1000.0,0.0003993,7]
[393659757,1762890633961,-150.0,0.00039936,7]
[393659758,1762890633970,-1000.0,0.00039938,7]
[393659759,1762890633980,-1000.0,0.00039939,7]
[393659760,1762890633989,-1000.0,0.0003994,7]
[393659761,1762890633999,-6113.67545842,0.00039942,4]
[393659762,1762890634009,-1000.0,0.00039943,7]
[393659763,1762890634019,-1657.68510588,0.00039946,4]
[393659764,1762890634028,-150.0,0.00039947,7]
[393659765,1762890634037,-150.0,0.00039949,7]
[393659766,1762890634047,-416.14,0.00039952,2]
[393659767,1762890634056,-832.12,0.00039952,2]
[393659768,1762890634065,-416.14,0.00039952,2]
[393659769,1762890634075,-416.14,0.00039952,2]
[393659770,1762890634084,-416.14,0.00039952,2]
[393659771,1762890634093,-416.14,0.00039952,2]
[393659772,1762890634103,-416.14,0.00039952,2]
[393659773,1762890634112,-416.14,0.00039952,2]
[393659774,1762890634121,-416.14,0.00039952,2]
[393659775,1762890634131,-416.14,0.00039952,2]
[393659776,1762890634140,-416.14,0.00039952,2]
[393659777,1762890634152,-416.14,0.00039952,2]
[393659778,1762890634161,-416.14,0.00039952,2]
[393659779,1762890634170,-416.14,0.00039952,2]
[393659780,1762890634180,-416.14,0.00039952,2]
[393659781,1762890634190,-416.14,0.00039952,2]
[393659782,1762890634199,-416.14,0.00039952,2]
[393659783,1762890634208,-416.14,0.00039952,2]
[393659784,1762890634218,-416.14,0.00039952,2]
[393659785,1762890634227,-416.14,0.00039952,2]
[393659786,1762890634236,-416.14,0.00039952,2]
[393659787,1762890634245,-1000.0,0.00039955,7]
[393659788,1762890634256,-150.0,0.00039955,7]
[393659789,1762890634265,-1000.0,0.00039958,7]
[393659790,1762890634276,-1000.0,0.00039959,7]
[393659791,1762890634286,-6113.67545842,0.00039959,4]
[393659792,1762890634296,-150.0,0.0003996,7]
[393659793,1762890634307,-1000.0,0.00039961,7]
[393659794,1762890634317,-1000.0,0.00039961,7]
[393659795,1762890634326,-1000.0,0.00039964,7]
[393659796,1762890634336,-1000.0,0.00039965,7]
[393659797,1762890634346,-1000.0,0.00039967,7]
[393659798,1762890634356,-1000.0,0.00039968,7]
[393659799,1762890634365,-1000.0,0.00039969,7]
[393659800,1762890634375,-150.0,0.00039979,7]
[393659801,1762890634384,-150.0,0.00039984,7]
[393659802,1762890634394,-1657.68510588,0.00039984,4]
[393659803,1762890634403,-150.0,0.00039985,7]
[393659804,1762890634413,-150.0,0.00039988,7]
[393659805,1762890634422,-6113.67545842,0.00039994,4]
[393659806,1762890634432,-176.76056241,0.00039999,15]
[393659807,1762890634441,-229.22,0.0004,60]
[393659808,1762890634453,-5000.0,0.0004,120]
[393659809,1762890634465,-507.87320782,0.0004,120]
[393659810,1762890634635,-460.91,0.0004,7]
[393659811,1762890634645,-150.0,0.0004,7]
[393659812,1762890634656,-1000.0,0.00040002,7]
[393659813,1762890634665,-1000.0,0.00040004,7]
[393659814,1762890634674,-213.08309978,0.00040004,7]
[393659815,1762890634683,-1000.0,0.00040007,7]
[393659816,1762890634693,-2078.0,0.0004001,5]
[393659817,1762890634703,-150.0,0.00040014,7]
[393659818,1762890634713,-150.0,0.00040016,7]
[393659819,1762890634723,-1000.0,0.00040017,7]
[393659820,1762890634732,-150.0,0.00040023,7]
[393659821,1762890634742,-1000.0,0.00040024,7]
[393659822,1762890634752,-1000.0,0.00040027,7]
[393659823,1762890634762,-150.0,0.00040029,7]
[393659824,1762890634771,-1000.0,0.00040043,7]
[393659825,1762890634780,-150.0,0.00040044,7]
[393659826,1762890634789,-1657.68510588,0.00040045,4]
[393659827,1762890634799,-1000.0,0.00040045,7]
[393659828,1762890634808,-150.0,0.00040046,7]
[393659829,1762890634819,-1000.0,0.00040053,7]
[393659830,1762890634828,-150.0,0.00040054,7]
[393659831,1762890634838,-6113.67545842,0.00040055,4]
[393659832,1762890634847,-150.0,0.00040055,7]
[393659833,1762890634857,-150.0,0.00040059,7]
[393659834,1762890634866,-1000.0,0.00040061,7]
[393659835,1762890634876,-150.0,0.00040061,7]
[393659836,1762890634886,-150.0,0.00040063,7]
[393659837,1762890634895,-150.0,0.00040063,7]
[393659838,1762890634906,-1000.0,0.00040065,7]
[393659839,1762890634917,-150.0,0.00040065,7]
[393659840,1762890634927,-1000.0,0.00040066,7]
[393659841,1762890634937,-1000.0,0.00040067,7]
[393659842,1762890634947,-1000.0,0.00040076,7]
[393659843,1762890634956,-6113.67545842,0.00040077,4]
[393659844,1762890634965,-150.0,0.00040079,7]
[393659845,1762890634975,-1000.0,0.00040081,7]
[393659846,1762890634985,-1657.68510588,0.00040086,4]
[393659847,1762890634994,-150.0,0.00040087,7]
[393659848,1762890635003,-150.0,0.00040093,7]
[393659849,1762890635012,-150.0,0.00040093,7]
[393659850,1762890635022,-6113.67545842,0.00040096,4]
[393659851,1762890635033,-151.0,0.00040099,27]
[393659852,1762890635044,-151.0,0.00040099,27]
[393659853,1762890635053,-151.0,0.00040099,27]
[393659854,1762890635064,-151.0,0.00040099,27]